Cogmind - Beta 11.1 @@@ ROGUE MODE // 2022.07.04 @ 18:01:19 Player: Hanyouslayer Result: Destroyed by as-70093 with Assembled Blade Performance ------------- Evolutions (0) 0 Regions Visited (2) 400 Robots Destroyed (9) 45 Value Destroyed (214) 214 Prototype IDs (0) 0 Alien Tech Used (0) 0 Bonus (0) 0 TOTAL SCORE: 659 Bonus ------- None Cogmind --------- Core Integrity 0/250 Matter 300/300 Energy 100/100 System Corruption 14% Temperature Cool (0) Movement Core (150) Ox2 Location -10/Mines Parts ------- > --- POWER (1) -------- (None) > --- PROPULSION (2) --- (None) > --- UTILITY (2) ------ Small Storage Unit > --- WEAPON (2) ------- Mining Claw > --- INVENTORY (8) ---- Light Treads Light Treads Aluminum Leg Aluminum Leg Peak State ------------ > --- POWER ------------ Ion Engine > --- PROPULSION ------- Compact Wheel Compact Wheel > --- UTILITY ---------- Small Storage Unit ECM Suite > --- WEAPON ----------- EM Pulse Gun Light Assault Rifle > --- INVENTORY -------- Ion Engine Light Treads Light Treads Aluminum Leg Aluminum Leg Light Assault Rifle [Rating: 7] Favorites ----------- Power Ion Engine Engine Ion Engine Propulsion Compact Wheel Wheel Compact Wheel Utility Small Storage Unit Device ECM Suite Storage Small Storage Unit Weapon Light Assault Rifle Energy Gun EM Pulse Gun Ballistic Gun Light Assault Rifle Slashing Weapon Mining Claw Build | -11 -10 -10 ------- Run | Scr Mat Min Slots Evolved . | . . . Power . | . . . Propulsion . | . . . Utility . | . . . Weapon . | . . . Parts Attached 10 | 6 1 3 Power 2 | 1 . 1 Engine 2 | 1 . 1 Core . | . . . Reactor . | . . . Propulsion 2 | 2 . . Treads . | . . . Leg . | . . . Wheel 2 | 2 . . Hover . | . . . Flight . | . . . Utility 2 | 1 1 . Device 1 | . 1 . Storage 1 | 1 . . Processor . | . . . Hackware . | . . . Protection . | . . . Artifact . | . . . Weapon 4 | 2 . 2 Energy Gun 1 | 1 . . Energy Cannon . | . . . Ballistic Gun 2 | 1 . 1 Ballistic Cannon . | . . . Launcher . | . . . Special Weapon . | . . . Impact Weapon . | . . . Slashing Weapon 1 | . . 1 Piercing Weapon . | . . . Special Melee Weapon . | . . . Unidentified Prototypes . | . . . Parts Lost 8 | . . 8 Power 2 | . . 2 Propulsion 2 | . . 2 Utility 1 | . . 1 Weapon 3 | . . 3 Highest Loss Streak 8 | . . 8 To Critical Strikes . | . . . Average Slot Usage (%) 93 | . 98 81 Engine 13 | . 14 12 Wheel 26 | . 28 22 Device 11 | . 12 10 Storage 14 | . 14 14 Energy Gun 12 | . 14 8 Ballistic Gun 13 | . 14 12 Naked Turns . | . . . Heaviest Build 15 | 13 15 15 Greatest Support 32 | 32 32 32 Greatest Overweight (x) . | . . . Average Overweight (x) . | . . . Largest Inventory Capacity 8 | 8 8 8 Average Capacity 7 | 6 8 8 Most Carried 7 | 6 7 7 Average Carried 6 | 3 6 6 Final Capacity 8 | 8 8 8 Final Carried 7 | 6 7 4 Class Distribution -------------------- 100% | Mutant Dominant Class ---------------- Mutant | -10/Materials Mutant | -10/Mines Resources | -11 -10 -10 ----------- Run | Scr Mat Min Matter Collected 315 | 230 52 33 Remotely . | . . . Salvage Created 319 | . 270 49 Parts 17 | . 17 . Haulers Intercepted . | . . . Recyclers Shooed . | . . . Parts Field Recycled . | . . . Retrieved Matter . | . . . Parts Self-Destructed . | . . . Prevented . | . . . Kills | -11 -10 -10 ------- Run | Scr Mat Min Combat Hostiles Destroyed 11 | . 8 3 Melee 2 | . . 2 Guns 9 | . 8 1 Classes Destroyed 4 | . 3 1 Worker 1 | . 1 . Swarmer 3 | . 3 . Grunt 5 | . 5 . Assembled 3 | . . 3 Best Kill Streak 6 | . 6 3 Combat Bots Only 5 | . 5 3 Max Kills in Single Turn 1 | . 1 1 Gunslinging . | . . . Exploded . | . . . Melee 1 | . . 1 Uniques/NPCs Destroyed . | . . . Combat | -11 -10 -10 -------- Run | Scr Mat Min Damage Taken 754 | . 213 541 Core 282 | . 62 220 Absorbed by Shields . | . . . Core Remaining (%) 100 | 100 . . Volleys Fired 26 | . 16 10 Largest 2 | . 2 2 Hottest 60 | . 60 60 Shots Fired 44 | . 32 12 Gun 44 | . 32 12 Cannon . | . . . Launcher . | . . . Special . | . . . Kinetic 26 | . 16 10 Thermal . | . . . Explosive . | . . . Electromagnetic 18 | . 16 2 Robot Hit Streak 11 | . 11 3 Robot Miss Streak 6 | . 2 6 Penetration Max . | . . . Secondary Targets . | . . . Shots Hit Robots 28 | . 22 6 Core Hits 21 | . 14 7 Critical Kills . | . . . Critical Parts Destroyed . | . . . Critical Strikes . | . . . Melee Attacks 3 | . . 3 Impact . | . . . Slashing 3 | . . 3 Piercing . | . . . Sneak Attacks . | . . . Combat Hostiles . | . . . Follow-up Attacks . | . . . Damage Inflicted 436 | . 299 137 Guns 317 | . 239 78 Cannons . | . . . Explosions 60 | . 60 . Melee 59 | . . 59 Ramming . | . . . Kinetic 131 | . 65 66 Thermal 60 | . 60 . Explosive . | . . . Electromagnetic 186 | . 174 12 Impact . | . . . Slashing 59 | . . 59 Piercing . | . . . Highest Corruption 14 | . . 14 Average Corruption 11 | . . 11 Corruption Purged . | . . . Corruption Blocked . | . . . Effects 1 | . . 1 Matter Fused 1 | . . 1 Overload Shots . | . . . Overflow Damage 3 | . 3 . Projectiles . | . . . Explosions 3 | . 3 . Melee . | . . . Knockbacks . | . . . Impact . | . . . Kinetic . | . . . Secondary . | . . . Self-Inflicted Damage 40 | . 40 . Shots 1 | . 1 . Rammed . | . . . Targets Rammed . | . . . Kicked . | . . . Crushed . | . . . Highest Temperature 82 | . 82 20 Average Temperature 36 | . 39 12 Received Heat Transfer 101 | . 81 20 Siege Activations . | . . . Robots Corrupted . | . . . Combat Hostiles . | . . . Parts Fried . | . . . Impact Corruptions . | . . . Robots Melted . | . . . Combat Hostiles . | . . . Parts Melted . | . . . Heat Transferred 50 | . 50 . Parts Sabotaged . | . . . Parts Stolen . | . . . Parts Stripped . | . . . Power Chain Reactions 1 | . 1 . Missiles Intercepted . | . . . Alert | -11 -10 -10 ------- Run | Scr Mat Min Peak Influence 396 | . 396 154 Initial 154 | . . 154 Average 128 | . 164 134 Maximum Alert Level 1 | . 1 . Low Security (%) 75 | 100 58 100 Level 1 24 | . 41 . Level 2 . | . . . Level 3 . | . . . Level 4 . | . . . Level 5 . | . . . High Security . | . . . Max Security . | . . . Squads Dispatched 2 | . 2 . Investigation . | . . . Extermination . | . . . Reinforcement 2 | . 2 . Assault . | . . . Garrison . | . . . Intercept . | . . . Searches Triggered . | . . . Construction Impeded . | . . . Haulers Reinforced . | . . . Active Scanning Responses . | . . . Cargo Convoy Interrupts . | . . . Stealth | -11 -10 -10 --------- Run | Scr Mat Min Distress Signals 1 | . 1 . Communications Jammed . | . . . Distress Signals . | . . . Times Spotted 31 | . 16 15 Peak Tracking Total 15 | . 7 15 Tactical Retreats 5 | . 3 2 Traps | -11 -10 -10 ------- Run | Scr Mat Min Traps Triggered . | . . . Indirectly . | . . . Trap Hack Attempts . | . . . Triggered . | . . . Disarmed . | . . . Reprogrammed . | . . . Reused . | . . . Traps Extracted . | . . . Installed . | . . . Triggered . | . . . Machines | -11 -10 -10 ---------- Run | Scr Mat Min Machines Disabled . | . . . Max in Single Turn . | . . . Machines Sabotaged . | . . . Garrisons Compromised . | . . . Overloaded Fab Kills . | . . . Hacking | -11 -10 -10 --------- Run | Scr Mat Min Machines Accessed . | . . . Terminals . | . . . Fabricators . | . . . Repair Stations . | . . . Recycling Units . | . . . Scanalyzers . | . . . Garrison Access . | . . . Total Hacks . | . . . Successful . | . . . Failed . | . . . Catastrophic . | . . . Database Lockouts . | . . . Manual . | . . . Terminals . | . . . Fabricators . | . . . Repair Stations . | . . . Recycling Units . | . . . Scanalyzers . | . . . Garrison Access . | . . . Terminal Hacks . | . . . Fabricator Hacks . | . . . Repair Station Hacks . | . . . Recycling Unit Hacks . | . . . Scanalyzer . | . . . Garrison Access Hacks . | . . . Unauthorized Hacks . | . . . Terminals . | . . . Fabricators . | . . . Repair Stations . | . . . Recycling Units . | . . . Scanalyzers . | . . . Garrison Access . | . . . Data Cores Recovered . | . . . Used . | . . . Hacking Detections . | . . . Full Trace Events . | . . . Feedback Events . | . . . Feedback Blocked . | . . . Robot Schematics Acquired . | . . . Robots Built . | . . . Authchips . | . . . Time . | . . . Total Robot Build Rating . | . . . Part Schematics Acquired . | . . . Parts Built . | . . . Authchips . | . . . Time . | . . . Total Part Build Rating . | . . . Parts Repaired . | . . . Time . | . . . Parts Recycled . | . . . Recycled Matter . | . . . Retrieved Matter . | . . . Retrieved Components . | . . . Parts Scanalyzed . | . . . Part Schematics Acquired . | . . . Parts Damaged . | . . . Bothacking | -11 -10 -10 ------------ Run | Scr Mat Min Used RIF Installer . | . . . Robots Hacked . | . . . Non-combat . | . . . Combat . | . . . Robot Hacks Applied . | . . . Relay Couplers Released . | . . . Fabnet Peak Effective % . | . . . Robots Rewired . | . . . Allies Hacked . | . . . Hacks Repelled . | . . . Allies | -11 -10 -10 -------- Run | Scr Mat Min Total Allies . | . . . Largest Group . | . . . Highest-Rated Group . | . . . Highest-Rated Ally . | . . . Total Orders . | . . . Ally Attacks . | . . . Total Damage . | . . . Kills . | . . . Allies Corrupted . | . . . Allies Melted . | . . . Intel | -11 -10 -10 ------- Run | Scr Mat Min Robot Analysis Total . | . . . Derelict Logs Recovered . | . . . Drone Launches . | . . . Drone Recoveries . | . . . Exploration | -11 -10 -10 ------------- Run | Scr Mat Min Turns Passed 301 | 55 182 64 Spaces Moved 193 | 41 118 34 Core 4 | 4 . . Treads . | . . . Legs . | . . . Wheels 189 | 37 118 34 Hover . | . . . Flight . | . . . Fastest Speed 50 | 50 100 100 Average Speed 98 | 95 100 100 Slowest Speed 100 | 100 100 100 Overloaded Moves . | . . . Propulsion Burnouts . | . . . Robots Hopped . | . . . Cave-ins Triggered . | . . . Exploration Rate (%) 19 | 3 41 13 Regions Visited 2 Branch Regions 1 Pre-discovered Areas . | . . . Known Exits Taken . | . . . Unknown Exits Taken 2 | 1 1 . Scrap Searched . | . . . Spaces Dug . | . . . Terrain Destroyed 6 | . 6 . Melee . | . . . Projectile . | . . . AOE 6 | . 6 . Terrain Rammed . | . . . Walls Destroyed . | . . . Machines Disabled . | . . . Actions | -11 -10 -10 --------- Run | Scr Mat Min Total 255 | 53 152 50 Wait 18 | 1 17 . Move 191 | 40 117 34 Hop . | . . . Pick Up 7 | 6 1 . Fast Attach 7 | 6 1 . Attach 3 | . . 3 Detach . | . . . Swap . | . . . Drop . | . . . Fire 26 | . 16 10 Melee 3 | . . 3 Ram . | . . . Kick . | . . . Crush . | . . . Escape Stasis . | . . . Rewire . | . . . Trap . | . . . Miscellaneous . | . . . Route ------- -11/Scrapyard -10/Materials -10/Mines History --------- Turn | Location | Event 17 | -11/Scrapyard | Discovered new exit (range 14) 56 | -11/Scrapyard | Entered Materials 220 | -10/Materials | Discovered new exit (range 6) 238 | -10/Materials | Entered Mines 262 | -10/Mines | Assembled infested the area 286 | -10/Mines | Core integrity fell below 50% 291 | -10/Mines | System corruption reached 10% 301 | -10/Mines | Core integrity fell below 20% 302 | -10/Mines | Destroyed by as-70093 with Assembled Blade Last Messages --------------- 00284_ Ion Engine destroyed. 00284_ ECM Suite destroyed. 00284_ System corrupted by crushing effect (+2). 00284_ System corrupted by crushing effect (+3). 00287_ as-80329 destroyed. 00288_ System corrupted: Matter fused (-10). 00288_ K-01 Serf collects debris. 00290_ Com. Wheel destroyed. 00290_ System corrupted by crushing effect (+3). 00290_ K-01 Serf collects debris. 00293_ as-13113 destroyed. 00293_ Lgt. Assault Rifle destroyed. 00293_ K-01 Serf collects debris. 00295_ as-46251 destroyed. 00296_ Acquired 14 matter. 00297_ K-01 Serf destroyed. 00298_ as-87215 destroyed. 00299_ Acquired 19 matter. 00299_ Ion Engine destroyed. 00299_ System corrupted by crushing effect (+2). Map ----- +----------------------------------------------------+ | | | | | ???????????????????????????????????????????? | | ?????????????????????????###########???????? | | ?????????????????????????# #???????? | | ?????????????????????????# """ #???????? | | ?????????????????????????# """ #???????? | | ?????????????????????????# """ #???????? | | ?????????????????????????# #???????? | | ?????????????????????????# """ """ #???????? | | ?????????????????????????# """ """ #???????? | | ?????????????????????????# """ """ #???????? | | ?????????????????????????# #???????? | | ????????????# ??????????# #???????? | | ????????????# ?????????####### ##???????? | | ????????????# ??????????????# #????????? | | ????????????# #?????????????# #????????? | | ????????????# #????????????# #????????? | | ????????????? #???????????# #????????? | | ??????????????? #??????????# #????????? | | ????????????????# #?????????# #????????? | | ?????????????????# #????????# #????????? | | ?????????????????# ????????# #????????? | | ?????????????????# ######### #????????? | | ????????????????## aaa #????????? | | ????????????????# %aa@ #????????? | | ????????????????# %############????????? | | ????????????????## ????????????????????? | | ?????????????????## ????????????????????? | | ??????????????????## ????????????????????? | | ???????????????????# ?????????????????????? | | ??????????????????? ?????????????????????? | | ?????????????????? ?????????????????????? | | ????????????????? ?????????????????????? | | ????????????????? ??????????????????????? | | ???????????????? ###??????????????????????? | | ???????????????# ?????????????????????????? | | ??????????????? ??????????????????????????? | | ???????????????????????????????????????????? | | ???????????????????????????????????????????? | | ???????????????????????????????????????????? | | ???????????????????????????????????????????? | | ???????????????????????????????????????????? | | ???????????????????????????????????????????? | | ???????????????????????????????????????????? | | ???????????????????????????????????????????? | | ???????????????????????????????????????????? | | ???????????????????????????????????????????? | | ???????????????????????????????????????????? | | ???????????????????????????????????????????? | +----------------------------------------------------+ Best States ------------- Heat Dissipation 25 Energy Generation 10 Energy Capacity 250 Matter Stores 300 Matter Capacity 300 Sight Range 16 Terrain Scan Density 10 ECM Strength 1 Evasion (%) 40 Item Schematics ----------------- None Robot Schematics ------------------ None Fabricated ------------ Nothing Alien Tech Used ----------------- None Achievements -------------- None Challenges ------------ None Game ------ Seed CloakingBladeModule Manual? 0 Play Time 00:05:10 Cumulative 42.2 hours Start 2022.07.04 @ 17:57:11 End 2022.07.04 @ 18:01:19 Sessions 1 Manual Loads 0 Difficulty Rogue Special Mode None Game No. 28 Rogue 25 Adventurer 0 Explorer 3 Win Type - Total 1 Types 1/0/0/0/0/0/0/0/0 Lore% 22 Gallery% 39 Achievement% 31 Wizard Run 0 Options --------- ASCII 0 Keyboard 0 Movement Mouse Keybinds 0 Fullscreen 1 Font 18/SmallcapsGlow Map View 76x50 Tactical HUD 1 Map Filters NONE Filters NONE Steam 0 RUN: 07809054-7e58-42ba-aa91-194b3fa7b27e